[Event "Early-Titled-Tuesday-Blitz-February-20-2024"]
[Site "Chess.com"]
[Date "2024.02.20"]
[Round "4"]
[White "BogdanDeac"]
[Black "ilqar_74"]
[Result "1/2-1/2"]
[WhiteElo "3043"]
[BlackElo "2848"]
[TimeControl "180+1"]
[EndTime "8:40:13 PST"]
[Termination "Game drawn by repetition"]

1. d4 {[%clk 0:03:00.9]} 1... Nf6 {[%clk 0:02:59.8]} 2. Nf3 {[%clk 0:03:01.2]}
2... e6 {[%clk 0:03:00.5]} 3. Bf4 {[%clk 0:03:01.6]} 3... d5 {[%clk 0:03:00.9]}
4. e3 {[%clk 0:03:02.1]} 4... Bd6 {[%clk 0:03:01.6]} 5. Bg3 {[%clk 0:03:02.6]}
5... O-O {[%clk 0:03:01.8]} 6. c4 {[%clk 0:03:03.3]} 6... c6 {[%clk 0:03:00.7]}
7. Nc3 {[%clk 0:03:03.4]} 7... Qe7 {[%clk 0:03:00.9]} 8. Qc2 {[%clk 0:03:01.7]}
8... Nbd7 {[%clk 0:03:00.1]} 9. Rd1 {[%clk 0:02:57.7]} 9... a6 {[%clk
0:02:51.7]} 10. Ne5 {[%clk 0:02:41.3]} 10... Nh5 {[%clk 0:02:42.7]} 11. Bd3
{[%clk 0:02:18.4]} 11... f5 {[%clk 0:02:42.2]} 12. Nxd7 {[%clk 0:01:25.7]} 12...
Nxg3 {[%clk 0:02:22]} 13. hxg3 {[%clk 0:01:22.3]} 13... Bxd7 {[%clk 0:02:22]}
14. g4 {[%clk 0:01:05.4]} 14... dxc4 {[%clk 0:02:10.3]} 15. Bxc4 {[%clk
0:01:04.4]} 15... Kh8 {[%clk 0:02:08.9]} 16. Be2 {[%clk 0:00:53.7]} 16... Rad8
{[%clk 0:01:57.8]} 17. e4 {[%clk 0:00:51]} 17... Bb4 {[%clk 0:01:53.4]} 18. a3
{[%clk 0:00:42.7]} 18... Ba5 {[%clk 0:01:53.4]} 19. e5 {[%clk 0:00:40]} 19... c5
{[%clk 0:01:46]} 20. dxc5 {[%clk 0:00:35.5]} 20... Bc7 {[%clk 0:01:42.3]} 21.
gxf5 {[%clk 0:00:31.8]} 21... exf5 {[%clk 0:01:42.2]} 22. Nd5 {[%clk 0:00:28.9]}
22... Qxe5 {[%clk 0:01:42]} 23. f4 {[%clk 0:00:25.9]} 23... Ba5+ {[%clk
0:01:28.4]} 24. b4 {[%clk 0:00:25.2]} 24... Qe8 {[%clk 0:01:27.6]} 25. bxa5
{[%clk 0:00:24.9]} 25... Ba4 {[%clk 0:01:26.8]} 26. Qc4 {[%clk 0:00:21.1]} 26...
Bxd1 {[%clk 0:01:25.7]} 27. Kxd1 {[%clk 0:00:22]} 27... Qc6 {[%clk 0:00:45.7]}
28. Bf3 {[%clk 0:00:21.2]} 28... Rxd5+ {[%clk 0:00:42.7]} 29. Qxd5 {[%clk
0:00:19.1]} 29... Qxd5+ {[%clk 0:00:43.1]} 30. Bxd5 {[%clk 0:00:19.8]} 30... Rd8
{[%clk 0:00:43.7]} 31. Ke2 {[%clk 0:00:16.8]} 31... Rxd5 {[%clk 0:00:43.4]} 32.
Rc1 {[%clk 0:00:16.8]} 32... g6 {[%clk 0:00:42.1]} 33. Ke3 {[%clk 0:00:15.8]}
33... Kg7 {[%clk 0:00:41.2]} 34. a4 {[%clk 0:00:15.5]} 34... h5 {[%clk
0:00:38.5]} 35. g3 {[%clk 0:00:13.9]} 35... Kf6 {[%clk 0:00:37.6]} 36. c6 {[%clk
0:00:13.6]} 36... bxc6 {[%clk 0:00:31.3]} 37. Rxc6+ {[%clk 0:00:13.6]} 37... Kg7
{[%clk 0:00:31.8]} 38. Rxa6 {[%clk 0:00:14]} 38... Rc5 {[%clk 0:00:31.7]} 39.
Ra8 {[%clk 0:00:12.2]} 39... Rc4 {[%clk 0:00:27.7]} 40. a6 {[%clk 0:00:11.4]}
40... Rxa4 {[%clk 0:00:28.2]} 41. a7 {[%clk 0:00:11.5]} 41... Kh7 {[%clk
0:00:25.8]} 42. Kd3 {[%clk 0:00:11.7]} 42... Kg7 {[%clk 0:00:25.8]} 43. Kc3
{[%clk 0:00:12]} 43... Kh7 {[%clk 0:00:25.9]} 44. Kb3 {[%clk 0:00:12.5]} 44...
Ra1 {[%clk 0:00:26.2]} 45. Kb4 {[%clk 0:00:12.7]} 45... Rb1+ {[%clk 0:00:26.6]}
46. Ka5 {[%clk 0:00:12]} 46... Ra1+ {[%clk 0:00:26.8]} 47. Kb6 {[%clk
0:00:12.3]} 47... Rb1+ {[%clk 0:00:27.3]} 48. Kc6 {[%clk 0:00:12.6]} 48... Rc1+
{[%clk 0:00:26.1]} 49. Kd6 {[%clk 0:00:12.9]} 49... Rd1+ {[%clk 0:00:25]} 50.
Ke6 {[%clk 0:00:13.3]} 50... Ra1 {[%clk 0:00:25.3]} 51. Kf6 {[%clk 0:00:13]}
51... Ra6+ {[%clk 0:00:25.2]} 52. Kg5 {[%clk 0:00:13.1]} 52... Ra3 {[%clk
0:00:21.2]} 53. Kf6 {[%clk 0:00:10.3]} 53... Ra4 {[%clk 0:00:19.7]} 54. Kg5
{[%clk 0:00:07.7]} 54... Ra6 {[%clk 0:00:19]} 55. Rb8 {[%clk 0:00:05.2]} 55...
Rxa7 {[%clk 0:00:18.7]} 56. Rb6 {[%clk 0:00:05.8]} 56... Rg7 {[%clk 0:00:15.8]}
57. Rc6 {[%clk 0:00:05.5]} 57... Rg8 {[%clk 0:00:13.8]} 58. Rb6 {[%clk
0:00:05.8]} 58... Rg7 {[%clk 0:00:14.2]} 59. Rc6 {[%clk 0:00:06]} 59... Rg8
{[%clk 0:00:14.7]} 60. Rb6 {[%clk 0:00:06.1]} 60... Rg7 {[%clk 0:00:15.2]}
1/2-1/2

[Event "Early-Titled-Tuesday-Blitz-February-20-2024"]
[Site "Chess.com"]
[Date "2024.02.20"]
[Round "4"]
[White "Genghis_K"]
[Black "Mops_2004"]
[Result "1-0"]
[WhiteElo "2930"]
[BlackElo "2725"]
[TimeControl "180+1"]
[EndTime "8:40:16 PST"]
[Termination "Genghis_K won by resignation"]

1. e4 {[%clk 0:03:00.9]} 1... g6 {[%clk 0:02:59.8]} 2. d4 {[%clk 0:03:01.2]}
2... Bg7 {[%clk 0:02:59.4]} 3. Nf3 {[%clk 0:03:02]} 3... d6 {[%clk 0:02:59.7]}
4. Bc4 {[%clk 0:03:02.8]} 4... Nc6 {[%clk 0:02:59.8]} 5. h3 {[%clk 0:03:01.8]}
5... Nf6 {[%clk 0:02:59.3]} 6. Qe2 {[%clk 0:02:59.1]} 6... e5 {[%clk 0:02:59.2]}
7. dxe5 {[%clk 0:02:56.8]} 7... Nxe5 {[%clk 0:03:00.1]} 8. Nxe5 {[%clk
0:02:55.5]} 8... dxe5 {[%clk 0:03:01]} 9. O-O {[%clk 0:02:55.8]} 9... O-O {[%clk
0:03:00.9]} 10. Rd1 {[%clk 0:02:56.1]} 10... Qe7 {[%clk 0:03:00.1]} 11. b3
{[%clk 0:02:56]} 11... Rd8 {[%clk 0:03:00.3]} 12. Ba3 {[%clk 0:02:53.4]} 12...
Rxd1+ {[%clk 0:02:59.3]} 13. Qxd1 {[%clk 0:02:54.3]} 13... Qe8 {[%clk
0:02:59.1]} 14. Nc3 {[%clk 0:02:54.6]} 14... c6 {[%clk 0:02:58.6]} 15. Qd6
{[%clk 0:02:49.5]} 15... b5 {[%clk 0:02:55.6]} 16. Bf1 {[%clk 0:02:46.5]} 16...
a5 {[%clk 0:02:54.4]} 17. Bc5 {[%clk 0:02:44.5]} 17... b4 {[%clk 0:02:52.5]} 18.
Na4 {[%clk 0:02:38.5]} 18... Nxe4 {[%clk 0:02:52]} 19. Qc7 {[%clk 0:02:36.3]}
19... Nxc5 {[%clk 0:02:48.9]} 20. Nxc5 {[%clk 0:02:37.2]} 20... Bf5 {[%clk
0:02:23.5]} 21. Bc4 {[%clk 0:02:36.4]} 21... Bf8 {[%clk 0:02:05.1]} 22. Nb7
{[%clk 0:02:25.4]} 22... Be6 {[%clk 0:01:52.2]} 23. Nxa5 {[%clk 0:02:11.6]}
23... Bd5 {[%clk 0:01:29.9]} 24. Rd1 {[%clk 0:01:59.7]} 24... Qe6 {[%clk
0:01:07.7]} 25. Nb7 {[%clk 0:01:22]} 25... Rxa2 {[%clk 0:00:55.7]} 26. Nd8
{[%clk 0:01:16.7]} 26... Qd6 {[%clk 0:00:53.7]} 27. Qxd6 {[%clk 0:01:08.4]}
27... Bxd6 {[%clk 0:00:53.5]} 28. Nxc6 {[%clk 0:01:00.7]} 28... Bxc4 {[%clk
0:00:44.4]} 29. Rxd6 {[%clk 0:01:00.4]} 29... Rxc2 {[%clk 0:00:32.8]} 30. bxc4
{[%clk 0:00:46.4]} 30... b3 {[%clk 0:00:33.1]} 31. Rd8+ {[%clk 0:00:46.7]} 31...
Kg7 {[%clk 0:00:33.6]} 32. Rb8 {[%clk 0:00:46.5]} 32... b2 {[%clk 0:00:33.8]}
33. Kh2 {[%clk 0:00:45.5]} 33... e4 {[%clk 0:00:20.4]} 34. Rb7 {[%clk
0:00:33.5]} 34... Rxf2 {[%clk 0:00:17.6]} 35. Nd4 {[%clk 0:00:32.4]} 35... e3
{[%clk 0:00:16.3]} 36. Kg3 {[%clk 0:00:29.7]} 36... Rd2 {[%clk 0:00:13.1]} 37.
Nf3 {[%clk 0:00:30.1]} 37... Rc2 {[%clk 0:00:11.5]} 38. c5 {[%clk 0:00:27.4]}
38... Kf6 {[%clk 0:00:04.2]} 39. c6 {[%clk 0:00:26.8]} 39... Rxc6 {[%clk
0:00:02.8]} 40. Rxb2 {[%clk 0:00:26.4]} 40... Re6 {[%clk 0:00:03.4]} 41. Re2
{[%clk 0:00:25]} 41... Kg7 {[%clk 0:00:03.8]} 42. Nd4 {[%clk 0:00:22.2]} 42...
Rd6 {[%clk 0:00:04]} 43. Nc2 {[%clk 0:00:20.2]} 43... Rd2 {[%clk 0:00:03.6]} 44.
Kf3 {[%clk 0:00:18.6]} 44... Rd6 {[%clk 0:00:03.1]} 45. Nxe3 {[%clk 0:00:18.4]}
45... f5 {[%clk 0:00:03.5]} 46. Nc4 {[%clk 0:00:17.9]} 46... Rd3+ {[%clk
0:00:03.8]} 47. Kf2 {[%clk 0:00:16.9]} 47... Rd7 {[%clk 0:00:04.5]} 48. Ne5
{[%clk 0:00:17.4]} 48... Rc7 {[%clk 0:00:04.8]} 49. Nf3 {[%clk 0:00:17.9]} 49...
Kf6 {[%clk 0:00:05.3]} 50. Rb2 {[%clk 0:00:18.1]} 50... Rd7 {[%clk 0:00:04.5]}
51. Rb6+ {[%clk 0:00:18.3]} 51... Kg7 {[%clk 0:00:05.2]} 52. h4 {[%clk
0:00:18.5]} 52... Re7 {[%clk 0:00:05.6]} 53. Kg3 {[%clk 0:00:18.2]} 53... Rd7
{[%clk 0:00:05.8]} 54. h5 {[%clk 0:00:17.2]} 54... Re7 {[%clk 0:00:05.4]} 55.
hxg6 {[%clk 0:00:17]} 55... hxg6 {[%clk 0:00:06.3]} 56. Nh4 {[%clk 0:00:17.2]}
56... Re3+ {[%clk 0:00:06.2]} 57. Kf2 {[%clk 0:00:16.7]} 57... Re4 {[%clk
0:00:06.2]} 58. Nxg6 {[%clk 0:00:14.1]} 58... Kf7 {[%clk 0:00:06.6]} 59. g3
{[%clk 0:00:13.8]} 59... Rc4 {[%clk 0:00:05.4]} 60. Ne5+ {[%clk 0:00:13.8]} 1-0

[Event "Early-Titled-Tuesday-Blitz-February-20-2024"]
[Site "Chess.com"]
[Date "2024.02.20"]
[Round "4"]
[White "ozates"]
[Black "Kopytkin"]
[Result "1-0"]
[WhiteElo "2584"]
[BlackElo "2379"]
[TimeControl "180+1"]
[EndTime "8:40:16 PST"]
[Termination "ozates won on time"]

1. e4 {[%clk 0:03:00.9]} 1... Nf6 {[%clk 0:03:00.2]} 2. e5 {[%clk 0:03:01.2]}
2... Nd5 {[%clk 0:03:00.5]} 3. d4 {[%clk 0:03:02.1]} 3... d6 {[%clk 0:03:00.9]}
4. Nf3 {[%clk 0:03:03]} 4... g6 {[%clk 0:03:00.8]} 5. Be2 {[%clk 0:02:57.4]}
5... Bg7 {[%clk 0:02:59.8]} 6. O-O {[%clk 0:02:58]} 6... O-O {[%clk 0:02:59.7]}
7. exd6 {[%clk 0:02:58.2]} 7... cxd6 {[%clk 0:02:59.7]} 8. h3 {[%clk 0:02:58]}
8... e5 {[%clk 0:02:57.2]} 9. c4 {[%clk 0:02:57.2]} 9... Ne7 {[%clk 0:02:57]}
10. Nc3 {[%clk 0:02:55.5]} 10... Be6 {[%clk 0:02:44.2]} 11. dxe5 {[%clk
0:02:55.1]} 11... dxe5 {[%clk 0:02:43.5]} 12. Be3 {[%clk 0:02:53.6]} 12... Nbc6
{[%clk 0:02:37.5]} 13. Bc5 {[%clk 0:02:53.3]} 13... Re8 {[%clk 0:02:36.6]} 14.
Ne4 {[%clk 0:02:52.3]} 14... Nf5 {[%clk 0:02:25.1]} 15. g4 {[%clk 0:02:48.4]}
15... Nfd4 {[%clk 0:02:19]} 16. Nxd4 {[%clk 0:02:48.1]} 16... Nxd4 {[%clk
0:02:14.6]} 17. Bxd4 {[%clk 0:02:34.1]} 17... exd4 {[%clk 0:02:13]} 18. Bd3
{[%clk 0:02:34]} 18... f5 {[%clk 0:02:03.7]} 19. Nc5 {[%clk 0:02:32.7]} 19...
fxg4 {[%clk 0:01:32.9]} 20. Nxe6 {[%clk 0:02:31.7]} 20... Rxe6 {[%clk
0:01:33.1]} 21. Qxg4 {[%clk 0:02:32.4]} 21... Re5 {[%clk 0:01:29.6]} 22. Kh1
{[%clk 0:02:32.4]} 22... Qe7 {[%clk 0:01:21.7]} 23. Qg2 {[%clk 0:02:21.2]} 23...
Re8 {[%clk 0:01:19]} 24. Rad1 {[%clk 0:02:15]} 24... Rg5 {[%clk 0:01:10.9]} 25.
Qh2 {[%clk 0:02:09.9]} 25... Re5 {[%clk 0:00:59.6]} 26. Qg2 {[%clk 0:02:02.3]}
26... Rg5 {[%clk 0:00:59.2]} 27. Qh2 {[%clk 0:02:02.5]} 27... Re5 {[%clk
0:00:59]} 28. Rg1 {[%clk 0:02:00.8]} 28... Qb4 {[%clk 0:00:48.6]} 29. b3 {[%clk
0:01:44.6]} 29... Qd6 {[%clk 0:00:48.7]} 30. Qg2 {[%clk 0:01:39.3]} 30... Qc6
{[%clk 0:00:47.4]} 31. b4 {[%clk 0:01:23.4]} 31... Qxg2+ {[%clk 0:00:37.4]} 32.
Kxg2 {[%clk 0:01:22.6]} 32... b6 {[%clk 0:00:38]} 33. a4 {[%clk 0:01:22.1]}
33... Bf8 {[%clk 0:00:36.3]} 34. Rb1 {[%clk 0:01:15.8]} 34... a5 {[%clk
0:00:36.4]} 35. bxa5 {[%clk 0:01:15.7]} 35... bxa5 {[%clk 0:00:35.9]} 36. Rb7
{[%clk 0:01:14.2]} 36... Bb4 {[%clk 0:00:32.4]} 37. Kh2 {[%clk 0:01:12]} 37...
R5e7 {[%clk 0:00:29.2]} 38. Rb6 {[%clk 0:01:09.9]} 38... Re6 {[%clk 0:00:25.4]}
39. c5 {[%clk 0:01:04.5]} 39... Rxb6 {[%clk 0:00:18.5]} 40. cxb6 {[%clk
0:01:04.1]} 40... Rb8 {[%clk 0:00:19.1]} 41. Rg4 {[%clk 0:00:54.2]} 41... Bc3
{[%clk 0:00:16.3]} 42. Re4 {[%clk 0:00:45.7]} 42... Rxb6 {[%clk 0:00:16.4]} 43.
Re7 {[%clk 0:00:45.9]} 43... Rc6 {[%clk 0:00:13.6]} 44. f4 {[%clk 0:00:44.4]}
44... Bb4 {[%clk 0:00:13.5]} 45. Rd7 {[%clk 0:00:42.1]} 45... Bd2 {[%clk
0:00:09.2]} 46. Kg3 {[%clk 0:00:38.3]} 46... Rf6 {[%clk 0:00:08.2]} 47. Rxd4
{[%clk 0:00:38.1]} 47... Be3 {[%clk 0:00:08.3]} 48. Re4 {[%clk 0:00:35.4]} 48...
Bd2 {[%clk 0:00:08.2]} 49. Kg4 {[%clk 0:00:35]} 49... Kg7 {[%clk 0:00:08.6]} 50.
Re7+ {[%clk 0:00:34.2]} 50... Kh6 {[%clk 0:00:08.9]} 51. f5 {[%clk 0:00:34.9]}
51... gxf5+ {[%clk 0:00:08.4]} 52. Bxf5 {[%clk 0:00:34.9]} 52... Rg6+ {[%clk
0:00:01.9]} 53. Bxg6 {[%clk 0:00:34.3]} 53... hxg6 {[%clk 0:00:02.8]} 54. h4
{[%clk 0:00:30.8]} 54... Bb4 {[%clk 0:00:03.7]} 55. Re6 {[%clk 0:00:25.1]} 55...
Kg7 {[%clk 0:00:02.1]} 56. Rc6 {[%clk 0:00:24.4]} 56... Bd2 {[%clk 0:00:01.8]}
57. Kf3 {[%clk 0:00:18.7]} 57... Bb4 {[%clk 0:00:01.9]} 58. Ke4 {[%clk
0:00:19.1]} 58... Kh6 {[%clk 0:00:02.1]} 59. Kd3 {[%clk 0:00:18]} 59... Be1
{[%clk 0:00:02.3]} 60. Ra6 {[%clk 0:00:13.3]} 60... Kh5 {[%clk 0:00:02]} 61. Kc4
{[%clk 0:00:13.7]} 1-0

[Event "Early-Titled-Tuesday-Blitz-February-20-2024"]
[Site "Chess.com"]
[Date "2024.02.20"]
[Round "4"]
[White "Aygehovit1992"]
[Black "Colombiano07"]
[Result "1/2-1/2"]
[WhiteElo "2683"]
[BlackElo "2438"]
[TimeControl "180+1"]
[EndTime "8:40:20 PST"]
[Termination "Game drawn - insufficient material"]

1. e4 {[%clk 0:03:00.9]} 1... e6 {[%clk 0:02:58.9]} 2. d4 {[%clk 0:03:00.7]}
2... d5 {[%clk 0:02:58.9]} 3. Nc3 {[%clk 0:03:01.4]} 3... Bb4 {[%clk 0:02:57.8]}
4. Ne2 {[%clk 0:03:01]} 4... dxe4 {[%clk 0:02:56.1]} 5. a3 {[%clk 0:03:00.8]}
5... Be7 {[%clk 0:02:56.8]} 6. Nxe4 {[%clk 0:03:00.3]} 6... Nf6 {[%clk 0:02:56]}
7. Nxf6+ {[%clk 0:03:00.4]} 7... Bxf6 {[%clk 0:02:56.9]} 8. Be3 {[%clk
0:03:00.9]} 8... O-O {[%clk 0:02:56.4]} 9. Qd3 {[%clk 0:02:57.9]} 9... b6 {[%clk
0:02:56.5]} 10. Qe4 {[%clk 0:02:51.3]} 10... Qd5 {[%clk 0:02:53.5]} 11. Nc3
{[%clk 0:02:49.4]} 11... Qxe4 {[%clk 0:02:53]} 12. Nxe4 {[%clk 0:02:50.3]} 12...
Be7 {[%clk 0:02:53]} 13. g3 {[%clk 0:02:48.7]} 13... Bb7 {[%clk 0:02:49.6]} 14.
Bg2 {[%clk 0:02:48.9]} 14... Kh8 {[%clk 0:02:43.9]} 15. O-O {[%clk 0:02:45.8]}
15... Nd7 {[%clk 0:02:42.3]} 16. Rfd1 {[%clk 0:02:43.5]} 16... Rad8 {[%clk
0:02:40.2]} 17. Bf4 {[%clk 0:02:41.4]} 17... c5 {[%clk 0:02:30]} 18. Bc7 {[%clk
0:02:21.7]} 18... Rc8 {[%clk 0:02:26.4]} 19. Bd6 {[%clk 0:02:14.2]} 19... Bxe4
{[%clk 0:02:10.3]} 20. Bxe7 {[%clk 0:02:13.1]} 20... Rfe8 {[%clk 0:02:06.1]} 21.
Bxe4 {[%clk 0:02:10.6]} 21... Rxe7 {[%clk 0:02:05]} 22. a4 {[%clk 0:01:57.2]}
22... g6 {[%clk 0:02:02.3]} 23. a5 {[%clk 0:01:56.9]} 23... cxd4 {[%clk
0:01:58.7]} 24. Rxd4 {[%clk 0:01:55.9]} 24... Nf6 {[%clk 0:01:58.5]} 25. Bd3
{[%clk 0:01:54.7]} 25... Kg7 {[%clk 0:01:54.8]} 26. axb6 {[%clk 0:01:51.7]}
26... axb6 {[%clk 0:01:55.7]} 27. Ra6 {[%clk 0:01:52.1]} 27... Nd5 {[%clk
0:01:50.2]} 28. c3 {[%clk 0:01:49.5]} 28... Rb8 {[%clk 0:01:45.8]} 29. Be4
{[%clk 0:01:42.4]} 29... Nf6 {[%clk 0:01:42.5]} 30. Bg2 {[%clk 0:01:29.9]} 30...
b5 {[%clk 0:01:41.4]} 31. Rb4 {[%clk 0:01:28.3]} 31... Rd7 {[%clk 0:01:38.5]}
32. Bf3 {[%clk 0:01:24.9]} 32... Nd5 {[%clk 0:01:24.7]} 33. Bxd5 {[%clk
0:01:17.3]} 33... Rxd5 {[%clk 0:01:25.6]} 34. Ra5 {[%clk 0:01:17.2]} 34... h5
{[%clk 0:01:20]} 35. c4 {[%clk 0:01:11.9]} 35... bxc4 {[%clk 0:00:45]} 36. Raa4
{[%clk 0:01:05.3]} 36... Rxb4 {[%clk 0:00:40.3]} 37. Rxb4 {[%clk 0:01:06.2]}
37... Rc5 {[%clk 0:00:40.6]} 38. h4 {[%clk 0:01:04.3]} 38... c3 {[%clk
0:00:40.5]} 39. bxc3 {[%clk 0:01:04.9]} 39... Rxc3 {[%clk 0:00:41.4]} 40. Kg2
{[%clk 0:01:05.6]} 40... Rd3 {[%clk 0:00:41.7]} 41. Rb7 {[%clk 0:01:05.8]} 41...
Rd5 {[%clk 0:00:42.6]} 42. Ra7 {[%clk 0:01:05]} 42... Rf5 {[%clk 0:00:43.1]} 43.
Rb7 {[%clk 0:01:05.2]} 43... Kf6 {[%clk 0:00:43.6]} 44. Ra7 {[%clk 0:01:05.5]}
44... Ke5 {[%clk 0:00:44.2]} 45. Ra5+ {[%clk 0:01:05.3]} 45... Kd4 {[%clk
0:00:44.3]} 46. Ra7 {[%clk 0:01:05.5]} 46... e5 {[%clk 0:00:43.8]} 47. Rd7+
{[%clk 0:01:05.4]} 47... Kc5 {[%clk 0:00:43.3]} 48. f3 {[%clk 0:01:01.1]} 48...
Rf6 {[%clk 0:00:41.6]} 49. Kf2 {[%clk 0:00:57.2]} 49... e4 {[%clk 0:00:41]} 50.
f4 {[%clk 0:00:57.5]} 50... Kc6 {[%clk 0:00:38.7]} 51. Re7 {[%clk 0:00:54.2]}
51... Kd5 {[%clk 0:00:36.6]} 52. Ke3 {[%clk 0:00:54.4]} 52... Rf5 {[%clk
0:00:23.3]} 53. Rxe4 {[%clk 0:00:51.3]} 53... Rf6 {[%clk 0:00:23.9]} 54. Re5+
{[%clk 0:00:48.9]} 54... Kd6 {[%clk 0:00:23]} 55. Kd4 {[%clk 0:00:31.6]} 55...
Re6 {[%clk 0:00:22.2]} 56. Ke4 {[%clk 0:00:31.9]} 56... Rxe5+ {[%clk 0:00:14.3]}
57. fxe5+ {[%clk 0:00:32.2]} 57... Ke6 {[%clk 0:00:15.2]} 58. Kd4 {[%clk
0:00:32.5]} 58... Kf5 {[%clk 0:00:15.1]} 59. Kd5 {[%clk 0:00:33]} 59... Kg4
{[%clk 0:00:11.5]} 60. Kd6 {[%clk 0:00:33.4]} 60... Kf5 {[%clk 0:00:07.6]} 61.
Ke7 {[%clk 0:00:31.4]} 61... Kxe5 {[%clk 0:00:07.6]} 62. Kxf7 {[%clk 0:00:31.8]}
62... Kf5 {[%clk 0:00:08.2]} 63. Kg7 {[%clk 0:00:32.2]} 63... g5 {[%clk
0:00:07.7]} 64. hxg5 {[%clk 0:00:22.6]} 64... Kxg5 {[%clk 0:00:08.6]} 65. Kh7
{[%clk 0:00:22.7]} 65... Kg4 {[%clk 0:00:08.5]} 66. Kh6 {[%clk 0:00:23.2]} 66...
Kxg3 {[%clk 0:00:09.1]} 67. Kxh5 {[%clk 0:00:23.6]} 1/2-1/2

[Event "Early-Titled-Tuesday-Blitz-February-20-2024"]
[Site "Chess.com"]
[Date "2024.02.20"]
[Round "4"]
[White "Fighterman91"]
[Black "Fandorine"]
[Result "0-1"]
[WhiteElo "2774"]
[BlackElo "2967"]
[TimeControl "180+1"]
[EndTime "8:40:23 PST"]
[Termination "Fandorine won on time"]

1. d4 {[%clk 0:02:59.2]} 1... Nf6 {[%clk 0:02:58.5]} 2. Nf3 {[%clk 0:02:59.4]}
2... d5 {[%clk 0:02:58.1]} 3. Bf4 {[%clk 0:03:00]} 3... c5 {[%clk 0:02:55.2]} 4.
e3 {[%clk 0:03:00.6]} 4... Nc6 {[%clk 0:02:55.5]} 5. Nbd2 {[%clk 0:03:01.3]}
5... e6 {[%clk 0:02:55.7]} 6. c3 {[%clk 0:03:01]} 6... Be7 {[%clk 0:02:56.3]} 7.
h3 {[%clk 0:03:00.6]} 7... Bd6 {[%clk 0:02:56.5]} 8. Bxd6 {[%clk 0:03:00]} 8...
Qxd6 {[%clk 0:02:55.9]} 9. Bb5 {[%clk 0:03:00.9]} 9... O-O {[%clk 0:02:50.9]}
10. O-O {[%clk 0:03:01.3]} 10... Bd7 {[%clk 0:02:46.5]} 11. Bxc6 {[%clk
0:03:01.9]} 11... Bxc6 {[%clk 0:02:43.6]} 12. Ne5 {[%clk 0:03:02.3]} 12... Nd7
{[%clk 0:02:43.3]} 13. Nxd7 {[%clk 0:03:01.8]} 13... Bxd7 {[%clk 0:02:41]} 14.
Qb3 {[%clk 0:02:46.1]} 14... b6 {[%clk 0:02:38.4]} 15. Qa3 {[%clk 0:02:46.3]}
15... Rfd8 {[%clk 0:02:35.5]} 16. Rad1 {[%clk 0:02:46.8]} 16... Qc7 {[%clk
0:02:28.6]} 17. Rfe1 {[%clk 0:02:47.2]} 17... Rac8 {[%clk 0:02:26.3]} 18. Nf3
{[%clk 0:02:22.6]} 18... a5 {[%clk 0:02:22.1]} 19. Qb3 {[%clk 0:02:22.1]} 19...
b5 {[%clk 0:02:16.7]} 20. dxc5 {[%clk 0:02:20.5]} 20... Qxc5 {[%clk 0:02:15.2]}
21. a3 {[%clk 0:02:16.2]} 21... h6 {[%clk 0:02:14.8]} 22. e4 {[%clk 0:02:01.9]}
22... dxe4 {[%clk 0:01:41.7]} 23. Rxe4 {[%clk 0:02:02]} 23... Bc6 {[%clk
0:01:36.7]} 24. Red4 {[%clk 0:02:02.5]} 24... Rd5 {[%clk 0:01:36.8]} 25. R1d2
{[%clk 0:01:41.5]} 25... Rcd8 {[%clk 0:01:31.7]} 26. Qd1 {[%clk 0:01:40.9]}
26... Bb7 {[%clk 0:01:07.7]} 27. Rxd5 {[%clk 0:01:39.4]} 27... Rxd5 {[%clk
0:01:07.5]} 28. Rxd5 {[%clk 0:01:39.8]} 28... Bxd5 {[%clk 0:01:02]} 29. Qd4
{[%clk 0:01:34.1]} 29... Qc4 {[%clk 0:00:49]} 30. Qxc4 {[%clk 0:01:06.4]} 30...
Bxc4 {[%clk 0:00:49.3]} 31. Ne5 {[%clk 0:00:51.8]} 31... f6 {[%clk 0:00:47.3]}
32. Nc6 {[%clk 0:00:48.9]} 32... a4 {[%clk 0:00:47.4]} 33. f3 {[%clk 0:00:45.9]}
33... Kf7 {[%clk 0:00:46.2]} 34. Kf2 {[%clk 0:00:46.5]} 34... e5 {[%clk
0:00:45]} 35. h4 {[%clk 0:00:44]} 35... Ke6 {[%clk 0:00:43.1]} 36. Ke3 {[%clk
0:00:43.5]} 36... Kd6 {[%clk 0:00:39]} 37. Nb4 {[%clk 0:00:41.9]} 37... Kc5
{[%clk 0:00:32.6]} 38. Na6+ {[%clk 0:00:33.2]} 38... Kd6 {[%clk 0:00:29.2]} 39.
Nb4 {[%clk 0:00:34.1]} 39... h5 {[%clk 0:00:25.9]} 40. g3 {[%clk 0:00:33.5]}
40... Bb3 {[%clk 0:00:20.2]} 41. f4 {[%clk 0:00:31.6]} 41... Bf7 {[%clk
0:00:19.6]} 42. Ke4 {[%clk 0:00:19.2]} 42... Bg6+ {[%clk 0:00:19]} 43. Ke3
{[%clk 0:00:18.8]} 43... Kc5 {[%clk 0:00:18.9]} 44. fxe5 {[%clk 0:00:19.2]}
44... fxe5 {[%clk 0:00:19.4]} 45. Kd2 {[%clk 0:00:10.2]} 45... Bh7 {[%clk
0:00:19.8]} 46. Na6+ {[%clk 0:00:09.4]} 46... Kc4 {[%clk 0:00:19.4]} 47. Nb8
{[%clk 0:00:08.4]} 47... Bf5 {[%clk 0:00:13.2]} 48. Nc6 {[%clk 0:00:08.6]} 48...
Kd5 {[%clk 0:00:13.8]} 49. Ne7+ {[%clk 0:00:08.6]} 49... Ke4 {[%clk 0:00:14.1]}
50. Nc6 {[%clk 0:00:04.2]} 50... Bd7 {[%clk 0:00:13.7]} 51. Nb8 {[%clk
0:00:04.1]} 51... Be6 {[%clk 0:00:13.5]} 52. Na6 {[%clk 0:00:03.7]} 52... Kf3
{[%clk 0:00:11.7]} 53. Nc5 {[%clk 0:00:02.7]} 53... Bc4 {[%clk 0:00:11.2]} 54.
Nd7 {[%clk 0:00:03.4]} 54... e4 {[%clk 0:00:11.7]} 55. Ne5+ {[%clk 0:00:03.8]}
55... Kf2 {[%clk 0:00:10.5]} 56. Kc2 {[%clk 0:00:02.5]} 56... e3 {[%clk
0:00:10.3]} 57. g4 {[%clk 0:00:03.2]} 57... e2 {[%clk 0:00:09.9]} 0-1